bitfinex-derivatives/quotes_SOLF0:USTF0_20250325
["timestamp","ask_amount","ask_price","bid_price","bid_amount"]
[1742896615141,13.9755,143.09,142.95,25.62]
[1742896615742,13.9755,143.09,142.96,6.9939]
[1742896616142,12.91816578,143.11,142.96,6.9939]
[1742896616344,0.04928021,143.04,143.01,0.05165815]
[1742896616542,12.91816578,143.11,142.97,6.9935]
[1742896616744,0.04503937,143.04,143.01,0.04441006]
[1742896617049,12.91816578,143.11,142.95,25.62]
[1742896617242,0.05225815,143.04,143.01,0.05226994]
[1742896617444,6.9904,143.04,142.95,25.62]
[1742896617647,0.04411886,143.04,143.01,0.04853386]
[1742896617845,12.91816578,143.11,142.95,25.62]
[1742896618045,0.05116582,143.04,143.01,0.04603389]
[1742896618245,6.9898,143.05,142.99,6.9922]
[1742896618544,0.0462601,143.04,143.01,0.04769307]
[1742896620150,7.0364601,143.04,143.01,0.04769307]
[1742896620650,6.9907,143.03,143.01,0.04769307]
[1742896620853,0.0462601,143.04,143.01,0.04769307]
[1742896621350,6.9907,143.03,143.01,0.04769307]
[1742896621751,0.0462601,143.04,143.01,0.04769307]
[1742896621946,6.991,143.03,143.01,0.04769307]
[1742896622147,0.0462601,143.04,143.01,0.04769307]
[1742896623049,0.0462601,143.04,143.01,7.03929307]
[1742896623854,0.0462601,143.04,143.02,6.991]
[1742896624050,0.0462601,143.04,143.01,25.62769307]
[1742896624255,0.0462601,143.04,143.03,6.9907]
[1742896624455,0.0462601,143.04,143.01,25.62769307]
[1742896624652,0.0462601,143.04,143.02,25.6]
[1742896625058,12.91816578,143.13,143.02,25.6]
[1742896625259,6.9891,143.07,143.02,25.6]
[1742896625554,358.0,143.14,143.02,25.6]
[1742896625955,358.0,143.14,143.03,6.9902]
[1742896626158,6.9886,143.08,143.07,0.05219075]
[1742896626557,0.04813558,143.09,143.07,0.05219075]
[1742896626757,358.0,143.14,143.07,0.05219075]
[1742896626954,6.9882,143.08,143.07,0.05219075]
[1742896629459,0.04418397,143.09,143.07,0.05219075]
[1742896630059,7.03198397,143.09,143.07,0.05219075]
[1742896630361,0.04418397,143.09,143.07,0.05219075]
[1742896630856,358.0,143.18,143.1,6.9868]
[1742896631055,6.9851,143.15,143.1,25.62]
[1742896631461,52.50016578,143.23,143.1,25.62]
[1742896631660,12.91816578,143.19,143.1,25.62]
[1742896632063,0.05189605,143.16,143.13,0.05298936]
[1742896632263,6.9853,143.14,143.13,0.05298936]
[1742896635361,14.02059605,143.16,143.06,25.62]
[1742896635563,13.9687,143.16,143.06,25.62]
[1742896635763,6.988,143.09,143.06,25.62]
[1742896636467,0.05086931,143.09,143.06,32.66065297]
[1742896636666,0.05086931,143.09,143.06,25.67165297]
[1742896636968,6.9884,143.08,143.06,25.67165297]
[1742896637268,0.05086931,143.09,143.06,25.67165297]
[1742896637568,7.03876931,143.09,143.06,25.67165297]
[1742896637962,6.9887,143.07,143.06,0.05165297]
[1742896638664,6.9883,143.08,143.06,0.05165297]
[1742896638865,0.05086931,143.09,143.06,0.05165297]
[1742896639866,6.9882,143.08,143.06,0.05165297]
[1742896640069,0.05086931,143.09,143.06,0.05165297]
[1742896640568,6.9887,143.07,143.06,0.05165297]
[1742896641065,0.05086931,143.09,143.08,6.9882]
[1742896641569,12.91816578,143.21,143.1,25.66]
[1742896641865,12.91816578,143.19,143.1,25.66]
[1742896642168,12.91816578,143.17,143.08,25.68]
[1742896642369,6.987,143.11,143.08,25.68]
[1742896642670,6.987,143.11,143.08,25.72803762]
[1742896642868,7.03245657,143.11,143.08,25.72803762]
[1742896643567,6.9873,143.1,143.08,25.72803762]
[1742896643870,0.04545657,143.11,143.08,0.04803762]
[1742896644072,6.9877,143.09,143.08,0.04803762]
[1742896645165,6.9874,143.1,143.08,0.04803762]
[1742896645370,0.04545657,143.11,143.08,0.04803762]
[1742896645867,7.03245657,143.11,143.08,0.04803762]
[1742896646068,0.04545657,143.11,143.08,7.03623762]
[1742896646267,0.04545657,143.11,143.08,0.04803762]
[1742896647173,0.04545657,143.11,143.1,6.9872]
[1742896648069,370.91816578,143.21,143.12,6.9862]
[1742896648269,12.91816578,143.21,143.12,6.9862]
[1742896648567,6.9839,143.17,143.13,6.9855]
[1742896648964,6.9843,143.16,143.11,25.64]
[1742896649175,7.0350543,143.16,143.14,0.0484665]
[1742896649367,0.0507543,143.16,143.14,0.0484665]
[1742896651972,243.31816578,143.25,143.14,0.0484665]
[1742896652176,25.62,143.23,143.15,25.62]
[1742896652878,6.9825,143.2,143.15,25.62]
[1742896653078,6.9825,143.2,143.15,32.6046]
[1742896653278,0.04905172,143.19,143.16,0.05098363]
[1742896653478,0.04905172,143.19,143.16,7.03518363]
[1742896653674,0.04905172,143.19,143.16,0.05098363]
[1742896654578,6.9838,143.17,143.16,0.05098363]
[1742896654977,0.04905172,143.19,143.16,0.05098363]
[1742896655178,6.9835,143.18,143.16,0.05098363]
[1742896656475,0.04905172,143.19,143.16,0.05098363]
[1742896657074,7.03225172,143.19,143.16,0.05098363]
[1742896657382,0.04905172,143.19,143.16,0.05098363]
[1742896657881,7.03195172,143.19,143.16,0.05098363]
[1742896659180,6.9834,143.18,143.16,0.05098363]
[1742896659582,0.04905172,143.19,143.16,0.05098363]
[1742896661575,6.9808,143.24,143.19,25.6]
[1742896662082,25.62,143.28,143.2,6.9821]
[1742896662484,6.9802,143.25,143.2,6.9821]
[1742896662784,6.9802,143.25,143.23,0.05198871]
[1742896663180,6.9804,143.24,143.23,0.05198871]
[1742896666479,6.9801,143.25,143.23,0.05198871]
[1742896666674,25.6,143.29,143.23,0.05198871]
[1742896667186,6.9804,143.24,143.23,0.05198871]
[1742896667685,6.9816,143.22,143.17,32.5438]
[1742896667884,38.47816578,143.25,143.11,365.0]
[1742896668185,38.47816578,143.25,143.16,25.56]
[1742896668586,38.47816578,143.25,143.19,0.04948602]
[1742896668587,0.0494727,143.22,143.19,0.04948602]
[1742896668785,6.9824,143.2,143.19,0.04948602]
[1742896669478,0.0494727,143.22,143.19,0.04948602]
[1742896669881,7.0310727,143.22,143.19,0.04948602]
[1742896670082,0.0494727,143.22,143.19,0.04948602]
[1742896670484,0.0494727,143.22,143.19,7.03198602]
[1742896670684,0.0494727,143.22,143.19,0.04948602]
[1742896670885,0.0494727,143.22,143.19,7.03208602]
[1742896671287,0.0494727,143.22,143.19,0.04948602]
[1742896671686,6.9821,143.21,143.19,0.04948602]
[1742896672189,7.0310727,143.22,143.19,0.04948602]
[1742896672585,0.0494727,143.22,143.19,0.04948602]
[1742896672785,6.9822,143.21,143.19,0.04948602]
[1742896673089,0.0494727,143.22,143.19,0.04948602]
[1742896674688,6.9821,143.21,143.19,0.04948602]
[1742896674891,0.0494727,143.22,143.19,0.04948602]
[1742896675283,7.0309727,143.22,143.19,0.04948602]
[1742896675791,6.9819,143.21,143.19,0.04948602]
[1742896676383,0.0494727,143.22,143.19,0.04948602]
[1742896678583,7.0308727,143.22,143.19,0.04948602]
[1742896680295,0.0494727,143.22,143.19,0.04948602]
[1742896681294,0.0494727,143.22,143.19,7.03208602]
[1742896681696,0.0494727,143.22,143.19,0.04948602]
[1742896682798,7.0310727,143.22,143.19,0.04948602]
[1742896684499,6.9819,143.21,143.19,0.04948602]
[1742896684690,0.0494727,143.22,143.19,0.04948602]
[1742896685096,6.9821,143.21,143.19,0.04948602]
[1742896685993,0.0494727,143.22,143.2,25.56]
[1742896686201,0.0494727,143.22,143.2,32.5421]
[1742896688002,0.0494727,143.22,143.21,6.9819]
[1742896688796,0.0494727,143.22,143.19,0.04948602]
[1742896689395,7.0312727,143.22,143.19,0.04948602]
[1742896689600,0.0494727,143.22,143.19,0.04948602]
[1742896690202,6.9822,143.21,143.19,0.04948602]
[1742896690505,0.0494727,143.22,143.19,0.04948602]
[1742896691202,6.9824,143.2,143.19,0.04948602]
[1742896696305,0.0494727,143.22,143.19,0.04948602]
[1742896696808,6.9821,143.21,143.19,0.04948602]
[1742896698910,7.0310727,143.22,143.19,0.04948602]
[1742896699912,0.0494727,143.22,143.19,32.59228602]
[1742896700806,33.81771929,143.29,143.2,6.9823]
[1742896701006,8.25771929,143.3,143.19,25.56]
[1742896701206,33.81771929,143.3,143.19,25.56]
[1742896701510,33.81771929,143.3,143.21,6.9815]
[1742896701707,6.9797,143.26,143.21,6.9815]
[1742896702100,6.9797,143.26,143.22,0.05105964]
[1742896702301,104.12650939,143.34,143.23,25.56]
[1742896702609,129.68650939,143.34,143.23,25.56]
[1742896702809,129.68650939,143.34,143.27,0.05372259]
[1742896702810,6.9763,143.33,143.27,0.05372259]
[1742896703406,6.9766,143.32,143.27,7.03242259]
[1742896703608,129.68650939,143.34,143.27,7.03242259]
[1742896703808,129.68650939,143.34,143.27,0.05372259]
[1742896704011,137.94422868,143.34,143.27,0.05372259]
[1742896704417,6.9763,143.33,143.27,0.05372259]
[1742896704811,129.68650939,143.34,143.27,0.05372259]
[1742896705111,6.9766,143.32,143.27,0.05372259]
[1742896706017,6.9762,143.33,143.27,0.05372259]
[1742896706516,6.9762,143.33,143.27,7.03242259]
[1742896706911,6.9762,143.33,143.27,0.05372259]
[1742896707520,6.9762,143.33,143.18,13.9664]
[1742896707521,258.36,143.23,143.13,181.12247632]
[1742896707713,6.9853,143.14,143.12,181.53625513]
[1742896708015,12.88609009,143.22,143.12,181.53625513]
[1742896708613,0.04767344,143.18,143.16,0.05111087]
[1742896708963,1.74622072,143.17,143.12,181.53625513]
[1742896709136,1.74622072,143.16,143.12,181.53625513]
[1742896709328,1.74622072,143.15,143.12,181.53625513]
[1742896709510,12.88609009,143.16,143.12,124.56301958]
[1742896709716,1.7463301,143.15,143.12,124.56301958]
[1742896709911,1.7463301,143.14,143.12,38.47185135]
[1742896710110,1.7463301,143.13,143.12,38.52193634]
[1742896710710,6.9863,143.12,143.11,141.24068065]
[1742896711017,1.74669535,143.12,143.11,141.24068065]
[1742896711206,1.74669535,143.14,143.11,141.24068065]
[1742896711409,25.65940058,143.12,143.08,230.32]
[1742896711811,25.65940058,143.12,143.09,0.04717877]
[1742896712015,0.05050632,143.11,143.09,0.04717877]
[1742896712520,7.03740632,143.11,143.09,0.04717877]
[1742896712822,0.05050632,143.11,143.09,0.04717877]
[1742896713121,6.9887,143.08,143.03,230.38]
[1742896713312,0.05050632,143.11,143.03,259.16]
[1742896713513,81.89462015,143.1,143.03,230.38]
[1742896713707,80.1475219,143.1,143.03,230.38]
[1742896714112,7.04015775,143.08,143.05,0.04911717]
[1742896714311,0.05155775,143.08,143.05,0.04911717]
[1742896714719,6.9892,143.06,143.05,0.04911717]
[1742896714910,35.91533928,143.06,143.05,0.04911717]
[1742896715818,28.92613928,143.06,142.96,1.216528]
[1742896716015,28.92613928,143.06,142.97,230.42]
[1742896716317,25.65940058,143.06,142.99,28.72]
[1742896717012,0.04835993,143.04,143.01,0.04798812]
[1742896717219,6.9911,143.02,143.01,0.04798812]
[1742896719123,299.84328042,143.02,143.01,0.04798812]
[1742896719317,6.9922,143.0,142.97,210.41474671]
[1742896719718,292.85218042,143.02,142.97,181.69474671]
[1742896719915,6.993,142.99,142.97,181.69474671]
[1742896720127,218.6461321,143.02,142.93,365.0]
[1742896720317,6.9928,142.99,142.93,28.68]
[1742896720512,0.04537809,142.99,142.96,0.05110442]
[1742896720716,0.04537809,142.99,142.97,28.66]
[1742896723921,0.04537809,142.99,142.96,0.05110442]
[1742896724320,0.04537809,142.99,142.93,35.6154]
[1742896724522,7.03817809,142.99,142.94,28.6]
[1742896724724,7.03817809,142.99,142.93,6.9954]
[1742896724921,76.73515673,142.97,142.94,28.6]
[1742896725419,76.73515673,142.97,142.94,28.64491645]
[1742896726422,28.65728875,142.95,142.94,28.64491645]
[1742896727929,0.05030872,142.96,142.94,28.64491645]
[1742896728331,0.05030872,142.96,142.92,28.48]
[1742896729326,0.05030872,142.96,142.94,6.9948]
[1742896729832,0.05030872,142.96,142.93,0.05190295]
[1742896730627,0.05030872,142.96,142.93,7.04700295]
[1742896730932,0.05030872,142.96,142.93,0.05190295]
[1742896731132,0.05030872,142.96,142.95,6.9946]
[1742896731633,28.65728875,143.03,142.96,28.38]
[1742896732327,6.9919,143.01,142.96,28.38]
[1742896732531,0.04485639,143.0,142.98,0.04855695]
[1742896734430,6.9926,142.99,142.98,0.04855695]
[1742896735130,6.9926,142.99,142.94,28.32]
[1742896735928,6.9926,142.99,142.94,35.3149]
[1742896736230,6.9926,142.99,142.95,0.05284391]
[1742896738243,7.03715639,143.0,142.95,0.05284391]
[1742896738540,79.34616981,142.98,142.93,28.18]
[1742896739438,79.34616981,142.98,142.94,6.9948]
[1742896739639,0.05062416,142.97,142.94,7.04023404]
[1742896740340,0.05062416,142.97,142.94,0.04543404]
[1742896740837,0.05062416,142.97,142.96,6.9941]
[1742896741544,6.991,143.03,142.98,6.9929]
[1742896742535,0.05330766,143.02,142.99,0.05181495]
[1742896742739,26.86259009,143.08,142.93,28.06]
[1742896742941,0.04801886,143.02,142.99,0.04922922]
[1742896743133,6.9924,143.0,142.99,0.04922922]
[1742896743441,0.04801886,143.02,142.99,0.04922922]
[1742896743844,6.9919,143.01,142.99,0.04922922]
[1742896745539,0.04801886,143.02,142.99,0.04922922]
[1742896745940,7.03961886,143.02,142.99,0.04922922]
[1742896746343,0.04801886,143.02,142.99,0.04922922]
[1742896746639,0.04801886,143.02,142.91,28.1]
[1742896746948,28.65728875,143.04,142.91,28.1]
[1742896747847,0.04859801,142.99,142.96,0.04499086]
[1742896748241,6.9931,142.98,142.96,0.04499086]
[1742896748441,0.04859801,142.99,142.96,0.04499086]
[1742896750148,0.04859801,142.99,142.98,6.9931]
[1742896750345,0.04859801,142.99,142.96,0.04499086]
[1742896750745,0.04859801,142.99,142.97,6.9933]
[1742896750948,77.02622742,142.98,142.97,6.9933]
[1742896752646,77.02622742,142.98,142.96,0.04499086]
[1742896755350,77.02622742,142.98,142.96,7.03879086]
[1742896755539,77.02622742,142.98,142.96,0.04499086]
[1742896755739,20.7337088,142.97,142.96,0.04499086]
[1742896756252,20.7337088,142.97,142.96,7.03909086]
[1742896757749,28.70588676,142.99,142.96,7.03909086]
[1742896758552,28.70588676,142.99,142.96,34.97909086]
[1742896758848,28.70588676,142.99,142.97,6.9935]
[1742896759251,28.70588676,142.99,142.96,27.98499086]
[1742896759942,28.70588676,142.99,142.98,6.9931]
[1742896762148,0.04859801,142.99,142.98,6.9931]
[1742896762751,0.04859801,142.99,142.97,6.9936]
[1742896762947,0.04859801,142.99,142.96,27.98499086]
[1742896763955,0.04859801,142.99,142.96,34.97879086]
[1742896764352,0.04859801,142.99,142.96,27.98499086]
[1742896765254,0.04859801,142.99,142.97,6.9932]
[1742896765456,0.04859801,142.99,142.96,27.98499086]
[1742896765457,0.04859801,142.99,142.96,0.04499086]
[1742896768159,0.04859801,142.99,142.96,7.03889086]
[1742896768858,0.04859801,142.99,142.96,0.04499086]
[1742896769463,0.04859801,142.99,142.98,6.9931]
[1742896770459,95.46615061,143.05,143.01,6.9913]
[1742896770660,95.46615061,143.05,142.99,27.94]
[1742896771065,95.46615061,143.05,143.01,6.9914]
[1742896771467,6.9893,143.06,143.01,6.9914]
[1742896771656,0.04564895,143.05,143.02,0.05318138]
[1742896776068,7.03554895,143.05,143.02,0.05318138]
[1742896776763,6.9905,143.04,143.02,0.05318138]
[1742896777068,0.04564895,143.05,143.02,0.05318138]
[1742896777771,6.9904,143.04,143.02,0.05318138]
[1742896777967,0.04564895,143.05,143.02,0.05318138]
[1742896778168,6.9907,143.03,143.02,0.05318138]
[1742896781873,6.9917,143.01,142.97,237.6933]
[1742896782474,6.9924,143.0,142.97,230.7]
[1742896782675,13.9784,143.06,142.97,230.7]
[1742896783075,0.04852164,143.03,143.0,0.05124558]
[1742896783577,6.9919,143.01,143.0,0.05124558]
[1742896785777,6.9939,142.97,142.95,6.9943]
[1742896785992,6.9939,142.97,142.92,27.58]
[1742896786283,55.52177884,143.06,142.91,230.68]
[1742896786284,13.9815,143.03,142.93,6.9953]
[1742896786482,6.9943,142.96,142.93,6.9953]
[1742896786877,28.65728875,143.04,142.89,251.6719]
[1742896786878,12.88609009,143.02,142.89,230.68]
[1742896787080,0.05372531,142.96,142.93,0.04897729]
[1742896787477,6.9951,142.94,142.93,0.05202131]
[1742896788387,0.04970261,142.96,142.87,6.9985]
[1742896788684,12.88609009,142.98,142.87,6.9985]
[1742896788883,6.9967,142.91,142.85,27.54]
[1742896789080,12.88609009,142.98,142.8,14.0029]
[1742896789382,6.9983,142.88,142.82,27.58]
[1742896789782,0.047963,142.86,142.84,0.05305779]
[1742896790186,0.047963,142.86,142.84,7.05275779]
[1742896790882,0.047963,142.86,142.84,0.05305779]
[1742896792382,0.047963,142.86,142.84,7.05295779]
[1742896792582,0.047963,142.86,142.84,0.05305779]
[1742896793183,0.047963,142.86,142.84,7.05295779]
[1742896793690,0.047963,142.86,142.84,0.05305779]
[1742896794690,7.047163,142.86,142.84,0.05305779]
[1742896795688,0.047963,142.86,142.84,0.05305779]
[1742896796793,7.046963,142.86,142.84,0.05305779]
[1742896798095,6.9995,142.85,142.84,0.05305779]
[1742896798288,0.047963,142.86,142.77,27.38]
[1742896798488,12.88609009,142.92,142.77,27.38]
[1742896798693,6.9997,142.85,142.77,27.38]
[1742896798890,12.88609009,142.92,142.77,27.38]
[1742896799097,6.9998,142.85,142.82,7.0009]
[1742896799294,0.05301628,142.86,142.83,0.04835039]
[1742896799600,6.9999,142.85,142.81,7.0012]
[1742896799799,0.04544981,142.86,142.83,0.05097273]
[1742896799991,358.0,142.93,142.77,27.38]
[1742896800192,6.9996,142.85,142.83,0.05287372]
[1742896800392,12.88609009,142.92,142.77,27.38]
[1742896800701,0.05157276,142.85,142.83,0.05223135]
[1742896800890,12.88609009,142.92,142.83,0.05223135]
[1742896801098,0.05208749,142.85,142.83,0.04963859]
[1742896801297,7.0004,142.84,142.81,7.0011]
[1742896801497,7.0004,142.84,142.83,0.04958725]
[1742896802298,0.04504282,142.85,142.79,7.0021]
[1742896802498,12.88609009,142.9,142.74,27.28]
[1742896802695,12.88609009,142.9,142.77,7.0033]
[1742896803003,7.0022,142.8,142.77,7.0033]
[1742896803397,7.0017,142.81,142.77,7.0033]
[1742896803598,0.05028733,142.8,142.78,7.0029]
[1742896803900,0.05028733,142.8,142.77,0.03025025]
[1742896804205,359.39928636,142.93,142.78,27.28]
[1742896804603,28.65728875,142.95,142.87,6.9982]
[1742896804998,28.65728875,142.95,142.83,27.34]
[1742896805198,28.65728875,142.95,142.85,6.999]
[1742896805505,0.05132675,142.9,142.88,0.05078609]
[1742896805697,28.65728875,142.93,142.88,0.05078609]
[1742896805898,0.05254488,142.9,142.88,0.05078609]
[1742896806802,0.05254488,142.9,142.89,6.9975]
[1742896807706,28.65728875,143.01,142.92,6.9958]
[1742896807901,6.9943,142.96,142.88,0.05078609]
[1742896808205,28.65728875,143.01,142.9,6.9969]
[1742896808411,6.9954,142.94,142.9,6.9969]
[1742896808706,41.54337884,143.01,142.88,6.9977]
[1742896808908,0.05280226,142.93,142.91,0.04914368]
[1742896809100,6.996,142.92,142.87,27.3]
[1742896809303,0.05028835,142.93,142.91,0.04658426]
[1742896810407,0.05028835,142.93,142.91,27.38658426]
[1742896811408,7.04598835,142.93,142.91,27.38658426]
[1742896811708,0.05028835,142.93,142.91,27.38658426]
[1742896812008,6.996,142.92,142.91,0.04658426]
[1742896812709,7.04598835,142.93,142.91,0.04658426]
[1742896812911,0.05028835,142.93,142.91,0.04658426]
[1742896813205,0.05028835,142.93,142.92,6.996]
[1742896813411,0.05028835,142.93,142.91,0.04658426]
[1742896814609,0.05028835,142.93,142.91,7.04308426]
[1742896814810,0.05028835,142.93,142.92,27.28]
[1742896815012,0.05028835,142.93,142.92,34.276]
[1742896815312,358.0,143.03,142.92,34.276]
[1742896815611,13.9795,143.05,142.92,27.28]
[1742896815811,6.9934,142.98,142.93,6.9952]
[1742896816011,13.9795,143.05,142.92,27.28]
[1742896816412,0.04722748,143.0,142.97,0.05312507]
[1742896816611,76.73515673,143.08,142.96,27.26]
[1742896816913,76.73515673,143.08,142.96,34.2538]
[1742896817104,0.04648596,143.03,143.0,0.05182348]
[1742896818006,6.9916,143.01,143.0,0.05182348]
[1742896818615,6.9943,142.96,142.93,27.22]
[1742896819415,6.9938,142.97,142.93,27.22]
[1742896819810,0.04643117,142.96,142.94,0.05065691]
[1742896820014,7.04053117,142.96,142.94,0.05065691]
[1742896820306,0.04643117,142.96,142.94,0.05065691]
[1742896820511,1.28512008,143.09,142.98,27.32]
[1742896820712,283.98138926,143.1,142.98,27.32]
[1742896820911,6.9894,143.06,142.98,27.32]
[1742896821110,28.65728875,143.06,142.98,27.32]
[1742896821310,28.65728875,143.06,142.99,6.9923]
[1742896821610,0.04759022,143.04,143.01,0.04550464]
[1742896821811,0.04759022,143.04,143.03,6.9907]
[1742896822009,115.11487785,143.08,143.03,12.88609009]
[1742896822206,189.32092617,143.09,143.07,27.54]
[1742896822906,189.32092617,143.09,143.03,27.54]
[1742896823101,0.05038326,143.07,143.05,0.05019014]
[1742896823716,189.32092617,143.09,143.08,6.9882]
[1742896823717,184.92340857,143.09,143.08,6.9882]
[1742896823913,74.1469433,143.09,143.08,6.9882]
[1742896824109,53.0058433,143.09,143.08,6.9882]
[1742896824308,236.65115772,143.21,143.08,6.98]
[1742896824510,236.65115772,143.21,143.06,12.88609009]
[1742896824813,0.04657933,143.15,143.12,27.88544463]
[1742896825014,236.65115772,143.21,143.12,27.84]
[1742896825215,0.05257396,143.15,143.12,34.87496114]
[1742896825413,236.65115772,143.21,143.12,34.826]
[1742896825613,0.04918791,143.15,143.12,34.87480881]
[1742896825813,236.65115772,143.21,143.12,27.84]
[1742896826018,0.05198135,143.15,143.12,27.89169125]
[1742896826209,236.65115772,143.21,143.12,27.84]
[1742896826507,0.05080297,143.15,143.12,27.8914554]
[1742896826718,236.65115772,143.21,143.15,0.04524089]
[1742896826907,0.05339518,143.15,143.12,27.84]
[1742896827112,378.65458707,143.27,143.05,394.80653635]
[1742896827314,358.0,143.27,143.16,27.74]
[1742896827514,0.051512,143.17,143.16,27.74]
[1742896827706,6.9819,143.21,143.2,0.04405233]
[1742896827911,6.9819,143.21,143.13,27.8]
[1742896828117,6.9819,143.21,143.19,0.04576232]
[1742896828305,6.9819,143.21,143.11,230.72]
[1742896828509,6.9819,143.21,143.19,0.05354842]
[1742896828709,0.05249534,143.17,143.15,0.04551991]
[1742896828907,6.9819,143.21,143.13,27.76]
[1742896829114,0.04939211,143.17,143.15,0.04998382]
[1742896832020,6.9827,143.2,143.15,0.04998382]
[1742896832214,27.8,143.23,143.15,0.04998382]
[1742896832415,6.984,143.17,143.15,0.04998382]
[1742896832609,27.8,143.23,143.15,0.04998382]
[1742896833120,0.04486072,143.2,143.05,230.58]
[1742896833319,20.65458707,143.21,143.05,230.58]
[1742896833713,6.9864,143.12,143.05,237.5694]
[1742896833918,20.65458707,143.21,143.05,237.5694]
[1742896834116,0.04933294,143.14,143.05,230.58]
[1742896834322,6.9872,143.11,143.05,230.58]
[1742896834519,7.03968133,143.11,143.05,230.58]
[1742896834714,7.03968133,143.11,143.07,0.04948984]
[1742896834919,0.05248133,143.11,143.07,0.04948984]
[1742896835522,7.03928133,143.11,143.07,0.04948984]
[1742896835718,0.05248133,143.11,143.07,0.04948984]
[1742896836924,6.9882,143.08,143.07,0.04948984]
[1742896838228,6.91879054,143.08,143.07,0.04948984]
[1742896847133,0.05248133,143.11,143.07,0.04948984]
[1742896848040,6.9882,143.08,143.07,0.04948984]
[1742896848238,0.05248133,143.11,143.07,0.04948984]
[1742896848739,6.9882,143.08,143.07,0.04948984]
[1742896852930,6.98,143.08,143.01,36.60779713]
[1742896853130,12.92585771,143.11,143.01,36.60779713]
[1742896853533,6.9911,143.02,143.01,36.60779713]
[1742896853736,13.9766,143.08,143.0,36.60779713]
[1742896854135,6.9916,143.01,143.0,36.60779713]
[1742896854641,0.04431649,143.02,143.0,36.60779713]
[1742896854834,13.9728,143.12,143.0,36.60779713]
[1742896855137,0.04857121,143.02,143.01,6.9916]
[1742896855331,0.04875312,143.07,143.02,27.22]
[1742896855641,0.05250401,143.06,143.02,27.22]
[1742896855944,12.92585771,143.16,143.02,27.22]
[1742896856236,6.9891,143.07,143.03,6.9904]
[1742896856642,0.05129414,143.06,143.04,0.0442144]
[1742896856939,7.04059414,143.06,143.04,0.0442144]
[1742896857138,0.05129414,143.06,143.04,0.0442144]
[1742896857734,6.9897,143.05,143.04,0.0442144]
[1742896864136,7.0,143.05,142.97,36.60779713]
[1742896864336,6.9928,142.99,142.97,36.60779713]
[1742896865335,7.04519772,142.99,142.97,36.66114027]
[1742896865537,6.9931,142.98,142.97,36.66114027]
[1742896865736,0.05239772,142.99,142.97,43.65474027]
[1742896866337,0.05239772,142.99,142.97,36.66114027]
[1742896866739,0.05239772,142.99,142.97,7.04674314]
[1742896867442,7.04499772,142.99,142.97,7.04674314]
[1742896867637,7.04499772,142.99,142.97,0.05334314]
[1742896867840,0.05239772,142.99,142.97,0.05334314]
[1742896868638,0.05239772,142.99,142.98,6.9931]
[1742896870349,0.05239772,142.99,142.97,7.04684314]
[1742896870545,0.05239772,142.99,142.97,0.05334314]
[1742896870943,0.05239772,142.99,142.97,7.04694314]
[1742896872544,0.05239772,142.99,142.98,6.9931]
[1742896873147,6.9894,143.06,143.02,6.991]
[1742896873343,13.9733,143.12,142.99,26.94]
[1742896873648,6.9893,143.06,142.99,26.94]
[1742896873835,12.92585771,143.14,142.99,26.94]
[1742896874347,6.9892,143.06,143.05,0.0522408]
[1742896874548,13.9746,143.1,143.0,6.9921]
[1742896874748,0.05312492,143.07,143.04,0.05119688]
[1742896875549,6.9897,143.05,143.04,0.05119688]
[1742896879449,6.9922,143.0,142.96,63.42779713]
[1742896879649,13.9764,143.09,142.96,63.42779713]
[1742896879855,12.92585771,143.1,142.98,6.9928]
[1742896880051,6.9919,143.01,142.98,6.9928]
[1742896880550,7.03823535,143.01,142.98,7.04614714]
[1742896880747,6.9922,143.0,142.98,7.04614714]
[1742896881359,0.04633535,143.01,142.98,7.04614714]
[1742896881360,7.03813535,143.01,142.98,7.04614714]
[1742896881657,0.04633535,143.01,142.98,0.05334714]
[1742896882051,0.04633535,143.01,143.0,6.9921]
[1742896882257,0.04633535,143.01,142.98,0.05334714]
[1742896882554,0.04633535,143.01,142.99,6.9923]
[1742896882860,7.03803535,143.01,142.99,6.9923]
[1742896883159,0.04633535,143.01,142.98,0.05334714]
[1742896883360,7.03813535,143.01,142.98,0.05334714]
[1742896883658,0.04633535,143.01,142.98,0.05334714]
[1742896884060,6.9925,143.0,142.98,0.05334714]
[1742896884256,0.04633535,143.01,142.98,0.05334714]
[1742896885256,0.04633535,143.01,142.99,6.9923]
[1742896885860,7.03813535,143.01,142.98,7.04624714]